lending/lending_fUSD_20250122
["ID","MTS","AMOUNT","RATE_DAILY","PERIOD"]
[349959639,1737537037593,-500.0,0.00019444,2]
[349959640,1737537037603,-500.0,0.00019444,2]
[349959641,1737537037612,-584.98,0.00019444,2]
[349959642,1737537037621,-500.0,0.00019444,2]
[349959643,1737537037788,-500.0,0.00019444,2]
[349959644,1737537037799,-938.01,0.00019444,2]
[349959645,1737537037808,-500.0,0.00019444,2]
[349959646,1737537037818,-500.0,0.00019444,2]
[349959647,1737537037827,-1002.54,0.00019444,2]
[349959648,1737537037837,-500.0,0.00019444,2]
[349959649,1737537037847,-2035.66,0.00019444,2]
[349959650,1737537037857,-500.0,0.00019444,2]
[349959651,1737537037867,-500.0,0.00019444,2]
[349959652,1737537037876,-500.0,0.00019444,2]
[349959653,1737537037886,-500.0,0.00019444,2]
[349959654,1737537037895,-500.0,0.00019444,2]
[349959655,1737537037905,-500.0,0.00019444,2]
[349959656,1737537037914,-2565.64,0.00019444,2]
[349959657,1737537037924,-500.0,0.00019444,2]
[349959658,1737537037933,-690.18,0.00019444,2]
[349959659,1737537037942,-1473.27,0.00019444,2]
[349959660,1737537037952,-500.0,0.00019444,2]
[349959661,1737537037962,-515.39,0.00019444,2]
[349959662,1737537037973,-500.0,0.00019444,2]
[349959663,1737537037985,-500.0,0.00019444,2]
[349959664,1737537037996,-500.0,0.00019444,2]
[349959665,1737537038006,-795.11,0.00019444,2]
[349959666,1737537038016,-1079.12,0.00019444,2]
[349959667,1737537038026,-500.0,0.00019444,2]
[349959668,1737537038036,-500.0,0.00019444,2]
[349959669,1737537038046,-500.0,0.00019444,2]
[349959670,1737537038056,-500.0,0.00019444,2]
[349959671,1737537038066,-500.0,0.00019444,2]
[349959672,1737537038075,-3298.56,0.00019444,2]
[349959673,1737537038085,-748.21,0.00019444,2]
[349959674,1737537038095,-500.0,0.00019444,2]
[349959675,1737537038111,-540.51144588,0.00019444,2]
[349959676,1737537038121,-500.0,0.00019444,2]
[349959677,1737537038131,-500.0,0.00019444,2]
[349959678,1737537038141,-538.44,0.00019444,2]
[349959680,1737537038150,-2133.15,0.00019444,2]
[349959681,1737537038160,-500.0,0.00019444,2]
[349959682,1737537038169,-500.0,0.00019444,2]
[349959683,1737537038179,-500.0,0.00019444,2]
[349959684,1737537038188,-500.0,0.00019444,2]
[349959685,1737537038199,-500.0,0.00019444,2]
[349959687,1737537038209,-500.0,0.00019444,2]
[349959690,1737537038219,-500.0,0.00019444,2]
[349959692,1737537038228,-500.0,0.00019444,2]
[349959694,1737537038237,-576.93543765,0.00019444,2]
[349959696,1737537038246,-806.14,0.00019444,2]
[349959698,1737537038256,-565.99,0.00019444,2]
[349959700,1737537038265,-500.0,0.00019444,2]
[349959703,1737537038275,-500.0,0.00019444,2]
[349959705,1737537038285,-500.0,0.00019444,2]
[349959707,1737537038294,-500.0,0.00019444,2]
[349959708,1737537038304,-500.0,0.00019444,2]
[349959709,1737537038318,-1317.35,0.00019444,2]
[349959710,1737537038327,-500.0,0.00019444,2]
[349959711,1737537038336,-500.0,0.00019444,2]
[349959712,1737537038347,-500.0,0.00019444,2]
[349959713,1737537038356,-500.0,0.00019444,2]
[349959714,1737537038366,-500.0,0.00019444,2]
[349959715,1737537038375,-601.99,0.00019444,2]
[349959716,1737537038385,-1886.38,0.00019444,2]
[349959717,1737537038395,-820.32,0.00019444,2]
[349959718,1737537038404,-500.0,0.00019444,2]
[349959719,1737537038413,-330.68380484,0.00019444,2]
[349959720,1737537038423,-756.3,0.00019444,2]
[349959721,1737537038433,-2211.97,0.00019444,2]
[349959722,1737537038442,-193.931485,0.00019445,2]
[349959723,1737537038451,-500.0,0.00019445,2]
[349959724,1737537038462,-500.0,0.00019445,2]
[349959725,1737537038471,-504.44732645,0.00019445,2]
[349959726,1737537038481,-500.0,0.00019445,2]
[349959727,1737537038491,-242.87146637,0.00019445,2]
[349959728,1737537038501,-405.65025118,0.00019445,2]
[349959729,1737537038510,-218.23499256,0.00019445,2]
[349959730,1737537038519,-500.0,0.00019445,2]
[349959731,1737537038529,-500.0,0.00019445,2]
[349959732,1737537038539,-500.0,0.00019445,2]
[349959733,1737537038549,-500.0,0.00019445,2]
[349959734,1737537038558,-500.0,0.00019445,2]
[349959735,1737537038567,-500.0,0.00019445,2]
[349959736,1737537038577,-500.0,0.00019445,2]
[349959737,1737537038587,-526.43,0.00019445,2]
[349959738,1737537038597,-500.0,0.00019445,2]
[349959739,1737537038606,-500.0,0.00019445,2]
[349959740,1737537038616,-500.0,0.00019445,2]
[349959741,1737537038625,-500.0,0.00019445,2]
[349959742,1737537038635,-500.0,0.00019445,2]
[349959743,1737537038644,-500.0,0.00019445,2]
[349959744,1737537038653,-500.0,0.00019445,2]
[349959745,1737537038663,-500.0,0.00019445,2]
[349959746,1737537038673,-516.43,0.00019445,2]
[349959747,1737537038683,-500.0,0.00019445,2]
[349959748,1737537038693,-300.0,0.00019445,2]
[349959749,1737537038703,-514.73,0.00019445,2]
[349959750,1737537038713,-500.0,0.00019445,2]
[349959751,1737537038722,-500.0,0.00019445,2]
[349959752,1737537038732,-500.0,0.00019445,2]
[349959753,1737537038741,-500.0,0.00019445,2]
[349959754,1737537038750,-500.0,0.00019445,2]
[349959755,1737537038760,-621.54448458,0.00019445,2]
[349959756,1737537038770,-43.60551144,0.00019445,2]
[349959757,1737537039066,-293.22553941,0.00019445,2]
[349959758,1737537039076,-500.0,0.00019445,2]
[349959759,1737537039085,-187.05920559,0.00019445,2]
[349959760,1737537039097,-312.94079441,0.00019445,2]
[349959761,1737537039106,-500.0,0.00019445,2]
[349959762,1737537039115,-500.0,0.00019445,2]
[349959763,1737537039125,-19.60794539,0.00019445,2]
[349959764,1737537039141,-480.39205461,0.00019445,2]
[349959765,1737537039151,-500.0,0.00019445,2]
[349959766,1737537039160,-500.0,0.00019445,2]
[349959767,1737537039170,-500.0,0.00019445,2]
[349959768,1737537039179,-500.0,0.00019445,2]
[349959769,1737537039188,-500.0,0.00019445,2]
[349959770,1737537039197,-452.69190306,0.00019445,2]
[349959771,1737537039870,-999.47,0.00019443,2]
[349959772,1737537039880,-500.0,0.00019444,2]
[349959773,1737537039892,-47.30809694,0.00019445,2]
[349959774,1737537039902,-500.0,0.00019445,2]
[349959775,1737537039915,-500.0,0.00019445,2]
[349959776,1737537039927,-500.0,0.00019445,2]
[349959777,1737537039937,-500.0,0.00019445,2]
[349959778,1737537039949,-500.0,0.00019445,2]
[349959779,1737537039960,-500.0,0.00019445,2]
[349959780,1737537039971,-500.0,0.00019445,2]
[349959781,1737537039982,-500.0,0.00019445,2]
[349959782,1737537039994,-500.0,0.00019445,2]
[349959783,1737537040005,-500.0,0.00019445,2]
[349959784,1737537040014,-500.0,0.00019445,2]
[349959785,1737537040025,-500.0,0.00019445,2]
[349959786,1737537040036,-629.1411425,0.00019445,2]
[349959787,1737537040048,-697.35,0.00019445,2]
[349959788,1737537040059,-500.0,0.00019445,2]
[349959789,1737537040071,-500.0,0.00019445,2]
[349959790,1737537040082,-500.0,0.00019445,2]
[349959791,1737537040093,-419.73076056,0.00019445,2]
[349959792,1737537040106,-80.26923944,0.00019445,2]
[349959793,1737537040116,-500.0,0.00019445,2]
[349959794,1737537040128,-259.47637084,0.00019445,2]
[349959795,1737537040143,-961.2,0.00019445,2]
[349959796,1737537040153,-500.0,0.00019445,2]
[349959797,1737537040163,-539.92,0.00019445,2]
[349959798,1737537040174,-500.0,0.00019445,2]
[349959799,1737537040184,-500.0,0.00019445,2]
[349959800,1737537040194,-500.0,0.00019445,2]
[349959801,1737537040205,-500.0,0.00019445,2]
[349959802,1737537040215,-500.0,0.00019445,2]
[349959803,1737537040226,-611.78,0.00019445,2]
[349959804,1737537040237,-291.76887097,0.00019445,2]
[349959805,1737537040247,-317.84870685,0.00019445,2]
[349959806,1737537040257,-500.0,0.00019445,2]
[349959808,1737537040268,-500.0,0.00019445,2]
[349959809,1737537040278,-500.0,0.00019445,2]
[349959810,1737537040289,-732.7,0.00019445,2]
[349959811,1737537040298,-11.9116119,0.00019445,2]
[349959812,1737537040387,-488.0883881,0.00019445,2]
[349959813,1737537040399,-500.0,0.00019445,2]
[349959814,1737537040409,-500.0,0.00019445,2]
[349959815,1737537040419,-494.24090497,0.00019445,2]
[349959816,1737537040429,-253.17872179,0.00019445,2]
[349959817,1737537040441,-246.82127821,0.00019445,2]
[349959818,1737537040452,-500.0,0.00019445,2]
[349959819,1737537040461,-515.1968645,0.00019445,2]
[349959820,1737537040617,-139.8931355,0.00019445,2]
[349959821,1737537040629,-500.0,0.00019445,2]
[349959822,1737537040640,-500.0,0.00019445,2]
[349959823,1737537040651,-500.0,0.00019445,2]
[349959824,1737537040661,-500.0,0.00019445,2]
[349959825,1737537040671,-500.0,0.00019445,2]
[349959826,1737537040681,-688.98,0.00019445,2]
[349959827,1737537040692,-500.0,0.00019445,2]
[349959828,1737537040702,-500.0,0.00019445,2]
[349959829,1737537040713,-501.63071581,0.00019445,2]
[349959830,1737537040722,-500.0,0.00019445,2]
[349959831,1737537040732,-500.0,0.00019445,2]
[349959832,1737537040742,-500.0,0.00019445,2]
[349959833,1737537040751,-500.0,0.00019445,2]
[349959834,1737537040761,-500.0,0.00019445,2]
[349959835,1737537040771,-500.0,0.00019445,2]
[349959836,1737537040781,-500.0,0.00019445,2]
[349959837,1737537040964,-500.0,0.00019445,2]
[349959839,1737537040974,-500.0,0.00019445,2]
[349959840,1737537040983,-500.0,0.00019445,2]
[349959841,1737537040993,-500.0,0.00019445,2]
[349959842,1737537041003,-500.0,0.00019445,2]
[349959844,1737537041012,-884.19,0.00019445,2]
[349959846,1737537041022,-500.0,0.00019445,2]
[349959848,1737537041032,-500.0,0.00019445,2]
[349959850,1737537041042,-500.0,0.00019445,2]
[349959852,1737537041052,-500.0,0.00019445,2]
[349959854,1737537041061,-503.57443901,0.00019445,2]
[349959856,1737537041071,-500.0,0.00019445,2]
[349959858,1737537041080,-663.18,0.00019445,2]
[349959860,1737537041090,-543.67,0.00019445,2]
[349959862,1737537041099,-790.69,0.00019445,2]
[349959864,1737537041109,-500.0,0.00019445,2]
[349959866,1737537041119,-500.0,0.00019445,2]
[349959868,1737537041128,-503.52920443,0.00019445,2]
[349959870,1737537041138,-923.8,0.00019445,2]
[349959872,1737537041148,-805.55,0.00019445,2]
[349959874,1737537041157,-500.0,0.00019445,2]
[349959876,1737537041168,-500.0,0.00019445,2]
[349959878,1737537041177,-500.0,0.00019445,2]
[349959881,1737537041187,-500.0,0.00019445,2]
[349959883,1737537041198,-500.0,0.00019445,2]
[349959885,1737537041210,-500.0,0.00019445,2]
[349959887,1737537041220,-500.0,0.00019445,2]
[349959888,1737537041229,-500.0,0.00019445,2]
[349959890,1737537041239,-500.0,0.00019445,2]
[349959892,1737537041249,-500.0,0.00019445,2]
[349959894,1737537041258,-500.0,0.00019445,2]
[349959896,1737537041267,-500.0,0.00019445,2]
[349959898,1737537041276,-508.92334491,0.00019445,2]
[349959900,1737537041285,-500.0,0.00019445,2]
[349959902,1737537041295,-500.0,0.00019445,2]
[349959904,1737537041305,-500.0,0.00019445,2]
[349959906,1737537041318,-500.0,0.00019445,2]
[349959908,1737537041327,-988.24,0.00019445,2]
[349959910,1737537041336,-787.99,0.00019445,2]
[349959911,1737537041347,-1035.87,0.00019445,2]
[349959913,1737537041356,-903.32,0.00019445,2]
[349959915,1737537041366,-500.0,0.00019445,2]
[349959916,1737537041376,-500.0,0.00019445,2]
[349959917,1737537041387,-500.0,0.00019445,2]
[349959918,1737537041397,-500.0,0.00019445,2]
[349959919,1737537041407,-509.91856829,0.00019445,2]
[349959920,1737537041416,-500.0,0.00019445,2]
[349959921,1737537041425,-500.0,0.00019445,2]
[349959922,1737537041435,-500.0,0.00019445,2]
[349959923,1737537041444,-500.0,0.00019445,2]
[349959924,1737537041454,-500.0,0.00019445,2]
[349959925,1737537041465,-500.0,0.00019445,2]
[349959926,1737537041476,-500.0,0.00019445,2]
[349959927,1737537041486,-500.0,0.00019445,2]
[349959928,1737537041495,-510.041794,0.00019445,2]
[349959929,1737537041504,-704.71,0.00019445,2]
[349959930,1737537041514,-500.0,0.00019445,2]
[349959931,1737537041524,-500.0,0.00019445,2]
[349959932,1737537041533,-500.0,0.00019445,2]
[349959933,1737537041542,-500.0,0.00019445,2]
[349959934,1737537041552,-500.0,0.00019445,2]
[349959935,1737537041561,-922.82,0.00019445,2]
[349959936,1737537041570,-728.75,0.00019445,2]
[349959937,1737537041580,-500.0,0.00019445,2]
[349959938,1737537041589,-599.17,0.00019445,2]
[349959939,1737537041599,-574.21,0.00019445,2]
[349959940,1737537041608,-500.0,0.00019445,2]
[349959941,1737537041617,-907.58,0.00019445,2]
[349959942,1737537041627,-715.97,0.00019445,2]
[349959943,1737537041636,-500.0,0.00019445,2]
[349959944,1737537041645,-2349.73,0.00019445,2]
[349959945,1737537041654,-500.0,0.00019445,2]
[349959946,1737537041664,-1050.17,0.00019445,2]
[349959947,1737537041673,-971.52,0.00019445,2]
[349959948,1737537041683,-99.54438616,0.00019445,2]
[349959949,1737537041697,-400.45561384,0.00019445,2]
[349959950,1737537041708,-1200.85438616,0.00019445,2]
[349959951,1737537041721,-199.88561384,0.00019445,2]
[349959952,1737537041731,-648.6,0.00019445,2]
[349959953,1737537041743,-959.29318915,0.00019445,2]
[349959954,1737537041760,-606.35681085,0.00019445,2]
[349959955,1737537041769,-500.0,0.00019445,2]
[349959956,1737537041779,-584.64,0.00019445,2]
[349959957,1737537041789,-548.07330587,0.00019445,2]
[349959958,1737537041800,-500.0,0.00019445,2]
[349959959,1737537041810,-1000.0,0.00019445,2]
[349959960,1737537041820,-761.81,0.00019445,2]
[349959961,1737537041830,-500.0,0.00019445,2]
[349959962,1737537041840,-500.0,0.00019445,2]
[349959963,1737537041849,-2223.57,0.00019445,2]
[349959964,1737537041858,-500.0,0.00019445,2]
[349959965,1737537041868,-1183.64,0.00019445,2]
[349959966,1737537041879,-833.94,0.00019445,2]
[349959967,1737537041888,-434.80783909,0.00019445,2]
[349959968,1737537041900,-329.63804856,0.00019445,2]
[349959975,1737537043615,-182.69146865,0.00019345,2]
[349959976,1737537043625,-1294.09,0.00019444,2]
[349959977,1737537043635,-245.50411235,0.00019445,2]
[349959978,1737537043645,-500.0,0.00019445,2]
[349959979,1737537043654,-500.0,0.00019445,2]
[349959980,1737537043666,-500.0,0.00019445,2]
[349959981,1737537043676,-500.0,0.00019445,2]
[349959982,1737537043685,-828.3,0.00019445,2]
[349959983,1737537043695,-500.0,0.00019445,2]
[349959984,1737537043705,-500.0,0.00019445,2]
[349959985,1737537043715,-500.0,0.00019446,2]
[349959987,1737537043724,-507.71379526,0.00019599,2]
[349959989,1737537043733,-1427.79409837,0.00019619,2]
[349959991,1737537043743,-262.6178173,0.00019628,2]
[349959992,1737537043752,-423.71268912,0.00019717,2]
[349959993,1737537043761,-402.21688497,0.00019717,2]
[349959994,1737537043770,-500.0,0.00019717,2]
[349959995,1737537043779,-378.99035774,0.00019717,2]
[349959996,1737537043789,-500.0,0.00019717,2]
[349959997,1737537043798,-500.0,0.00019717,2]
[349959998,1737537043807,-1875.62,0.00019717,2]
[349959999,1737537043816,-639.66,0.00019717,2]
[349960000,1737537043825,-922.03,0.00019717,2]
[349960001,1737537043834,-500.0,0.00019717,2]
[349960002,1737537043845,-500.0,0.00019717,2]
[349960003,1737537043854,-1022.45,0.00019717,2]
[349960004,1737537043865,-811.48,0.00019717,2]
[349960005,1737537043874,-500.0,0.00019717,2]
[349960006,1737537043883,-522.46238424,0.00019717,2]
[349960007,1737537043903,-176.40761576,0.00019717,2]
[349960008,1737537043914,-732.44,0.00019717,2]
[349960009,1737537043923,-1559.39,0.00019717,2]
[349960010,1737537043932,-500.0,0.00019717,2]
[349960011,1737537043942,-851.4,0.00019717,2]
[349960012,1737537043951,-1455.31,0.00019717,2]
[349960013,1737537043961,-500.0,0.00019717,2]
[349960014,1737537043971,-1277.88,0.00019717,2]
[349960015,1737537043980,-500.0,0.00019717,2]
[349960016,1737537043989,-646.15,0.00019717,2]
[349960017,1737537043999,-679.37,0.00019717,2]
[349960018,1737537044008,-500.0,0.00019717,2]
[349960019,1737537044018,-1134.65,0.00019717,2]
[349960020,1737537044027,-2090.77,0.00019717,2]
[349960021,1737537044036,-807.91,0.00019717,2]
[349960022,1737537044046,-552.24,0.00019717,2]
[349960023,1737537044055,-500.0,0.00019717,2]
[349960024,1737537044065,-802.88,0.00019717,2]
[349960025,1737537044075,-1664.12,0.00019717,2]
[349960026,1737537044085,-500.0,0.00019717,2]
[349960027,1737537044095,-500.0,0.00019717,2]
[349960028,1737537044106,-999.47,0.00019717,2]
[349960029,1737537044117,-258.65,0.00019718,2]
[349960030,1737537044126,-500.0,0.00019718,2]
[349960031,1737537044136,-500.0,0.00019718,2]
[349960032,1737537044146,-500.0,0.00019718,2]
[349960033,1737537044156,-500.0,0.00019718,2]
[349960034,1737537044167,-500.0,0.00019718,2]
[349960035,1737537044178,-500.0,0.00019718,2]
[349960036,1737537044189,-500.0,0.00019718,2]
[349960037,1737537044200,-500.0,0.00019718,2]
[349960038,1737537044210,-500.0,0.00019718,2]
[349960039,1737537044219,-361.94034028,0.00019718,2]
[349960040,1737537044228,-638.71,0.00019718,2]
[349960041,1737537044237,-433.49178807,0.00019718,2]
[349960042,1737537044247,-500.0,0.00019718,2]
[349960043,1737537044256,-837.88,0.00019718,2]
[349960044,1737537044265,-500.0,0.00019718,2]
[349960045,1737537044275,-500.0,0.00019718,2]
[349960046,1737537044284,-500.0,0.00019718,2]
[349960047,1737537044293,-500.0,0.00019718,2]
[349960048,1737537044302,-500.0,0.00019718,2]
[349960049,1737537044315,-500.0,0.00019718,2]
[349960050,1737537044324,-500.0,0.00019718,2]
[349960051,1737537044333,-500.0,0.00019718,2]
[349960052,1737537044342,-503.91027521,0.00019718,2]
[349960053,1737537044351,-500.0,0.00019718,2]
[349960054,1737537044361,-200.0,0.00019718,2]
[349960055,1737537044370,-500.0,0.00019718,2]
[349960056,1737537044379,-500.0,0.00019718,2]
[349960057,1737537044389,-500.0,0.00019718,2]
[349960058,1737537044399,-500.0,0.00019718,2]
[349960059,1737537044408,-500.0,0.00019718,2]
[349960060,1737537044418,-590.89,0.00019718,2]
[349960061,1737537044427,-500.0,0.00019718,2]
[349960062,1737537044437,-649.92,0.00019718,2]
[349960063,1737537044446,-519.65961843,0.00019718,2]
[349960064,1737537044455,-500.0,0.00019718,2]
[349960065,1737537044466,-500.0,0.00019718,2]
[349960066,1737537044476,-500.0,0.00019718,2]
[349960067,1737537044487,-500.0,0.00019718,2]
[349960068,1737537044496,-500.0,0.00019718,2]
[349960069,1737537044506,-509.42473137,0.00019718,2]
[349960070,1737537044515,-443.83752633,0.00019718,2]
[349960071,1737537044524,-500.0,0.00019718,2]
[349960072,1737537044533,-500.0,0.00019718,2]
[349960073,1737537044543,-500.0,0.00019718,2]
[349960074,1737537044552,-500.0,0.00019718,2]
[349960075,1737537044561,-500.0,0.00019718,2]
[349960076,1737537044570,-500.0,0.00019718,2]
[349960077,1737537044579,-786.99,0.00019718,2]
[349960078,1737537044589,-500.0,0.00019718,2]
[349960079,1737537044598,-509.69885634,0.00019718,2]
[349960080,1737537044606,-500.0,0.00019718,2]
[349960081,1737537044616,-500.0,0.00019718,2]
[349960082,1737537044625,-500.0,0.00019718,2]
[349960083,1737537044634,-500.0,0.00019718,2]
[349960084,1737537044643,-959.596107,0.00019718,2]
[349960085,1737537044653,-500.0,0.00019718,2]
[349960086,1737537044662,-500.0,0.00019718,2]
[349960087,1737537044672,-500.0,0.00019718,2]
[349960088,1737537044681,-500.0,0.00019718,2]
[349960089,1737537044690,-500.0,0.00019718,2]
[349960090,1737537044699,-500.0,0.00019718,2]
[349960091,1737537044709,-387.79842223,0.00019718,2]
[349960092,1737537044718,-500.0,0.00019718,2]
[349960093,1737537044727,-510.32359324,0.00019718,2]
[349960094,1737537044738,-500.0,0.00019718,2]
[349960095,1737537044747,-500.0,0.00019718,2]
[349960096,1737537044757,-500.0,0.00019718,2]
[349960097,1737537044766,-500.0,0.00019718,2]
[349960098,1737537044776,-905.3,0.00019718,2]
[349960099,1737537044785,-500.0,0.00019718,2]
[349960100,1737537044794,-500.0,0.00019718,2]
[349960101,1737537044804,-500.0,0.00019718,2]
[349960102,1737537044813,-500.0,0.00019718,2]
[349960103,1737537044823,-497.00459664,0.00019718,2]
[349960104,1737537044833,-500.0,0.00019718,2]
[349960105,1737537044842,-500.0,0.00019718,2]
[349960106,1737537044852,-602.22,0.00019718,2]
[349960107,1737537044861,-500.0,0.00019718,2]
[349960108,1737537044870,-512.82377305,0.00019718,2]
[349960109,1737537044879,-1063.2,0.00019718,2]
[349960110,1737537044889,-500.0,0.00019718,2]
[349960111,1737537044899,-500.0,0.00019718,2]
[349960112,1737537044908,-981.49,0.00019718,2]
[349960113,1737537044918,-500.0,0.00019718,2]
[349960114,1737537044927,-500.0,0.00019718,2]
[349960115,1737537044936,-500.0,0.00019718,2]
[349960116,1737537044946,-609.16468402,0.00019718,2]
[349960117,1737537044957,-500.0,0.00019718,2]
[349960118,1737537044967,-500.0,0.00019718,2]
[349960119,1737537044977,-500.0,0.00019718,2]
[349960120,1737537044986,-500.0,0.00019718,2]
[349960121,1737537044996,-420.73230976,0.00019718,2]
[349960122,1737537045006,-684.04,0.00019718,2]
[349960123,1737537045015,-500.0,0.00019718,2]
[349960124,1737537045025,-500.0,0.00019718,2]
[349960125,1737537045034,-500.0,0.00019718,2]
[349960126,1737537045045,-500.0,0.00019718,2]
[349960127,1737537045196,-500.0,0.00019718,2]
[349960128,1737537045207,-500.0,0.00019718,2]
[349960129,1737537045216,-500.0,0.00019718,2]
[349960130,1737537045226,-500.0,0.00019718,2]
[349960131,1737537045236,-577.53629557,0.00019718,2]
[349960132,1737537045248,-500.0,0.00019718,2]
[349960133,1737537045259,-500.0,0.00019718,2]
[349960134,1737537045269,-1036.61,0.00019718,2]
[349960135,1737537045280,-687.36,0.00019718,2]
[349960136,1737537045289,-500.0,0.00019718,2]
[349960137,1737537045298,-500.0,0.00019718,2]
[349960138,1737537045312,-500.0,0.00019718,2]
[349960139,1737537045323,-500.0,0.00019718,2]
[349960140,1737537045333,-500.0,0.00019718,2]
[349960141,1737537045342,-500.0,0.00019718,2]
[349960142,1737537045352,-529.94,0.00019718,2]
[349960143,1737537045363,-500.0,0.00019718,2]
[349960144,1737537045372,-721.36,0.00019718,2]
[349960145,1737537045381,-500.0,0.00019718,2]
[349960146,1737537045392,-508.61708301,0.00019718,2]
[349960147,1737537045402,-249.663562,0.00019718,2]
[349960148,1737537045411,-500.0,0.00019718,2]
[349960149,1737537045420,-500.0,0.00019718,2]
[349960150,1737537045430,-794.87,0.00019718,2]
[349960151,1737537045439,-506.66974336,0.00019718,2]
[349960152,1737537045449,-500.0,0.00019718,2]
[349960153,1737537045458,-604.68,0.00019718,2]
[349960154,1737537045468,-500.0,0.00019718,2]
[349960155,1737537045477,-500.0,0.00019718,2]
[349960156,1737537045487,-500.0,0.00019718,2]
[349960157,1737537045497,-635.51,0.00019718,2]
[349960158,1737537045506,-500.0,0.00019718,2]
[349960159,1737537045516,-500.0,0.00019718,2]
[349960160,1737537045525,-500.0,0.00019718,2]
[349960161,1737537045535,-500.0,0.00019718,2]
[349960162,1737537045544,-500.0,0.00019718,2]
[349960163,1737537045554,-500.0,0.00019718,2]
[349960164,1737537045563,-711.98,0.00019718,2]
[349960165,1737537045572,-500.0,0.00019718,2]
[349960166,1737537045581,-500.0,0.00019718,2]
[349960167,1737537045591,-500.0,0.00019718,2]
[349960168,1737537045600,-1786.14,0.00019718,2]
[349960169,1737537045610,-500.0,0.00019718,2]
[349960170,1737537045619,-921.11,0.00019718,2]
[349960171,1737537045629,-500.0,0.00019718,2]
[349960172,1737537045638,-500.0,0.00019718,2]
[349960173,1737537045648,-500.0,0.00019718,2]
[349960174,1737537045658,-1710.78,0.00019718,2]
[349960175,1737537045667,-500.0,0.00019718,2]
[349960176,1737537045677,-1271.98,0.00019718,2]
[349960177,1737537045686,-503.06412812,0.00019718,2]
[349960178,1737537045695,-1008.05,0.00019718,2]
[349960179,1737537045705,-500.0,0.00019718,2]
[349960180,1737537045715,-500.0,0.00019718,2]
[349960181,1737537045725,-658.5,0.00019718,2]
[349960182,1737537045735,-500.0,0.00019718,2]
[349960183,1737537045744,-500.0,0.00019718,2]
[349960184,1737537045755,-517.12640578,0.00019718,2]
[349960185,1737537045764,-500.0,0.00019718,2]
[349960186,1737537045774,-594.1,0.00019718,2]
[349960187,1737537045785,-500.0,0.00019718,2]
[349960188,1737537045796,-500.0,0.00019718,2]
[349960189,1737537045806,-561.17,0.00019718,2]
[349960190,1737537045816,-256.16825079,0.00019718,2]
[349960191,1737537045826,-500.0,0.00019718,2]
[349960192,1737537045835,-294.82772123,0.00019718,2]
[349960193,1737537045845,-500.0,0.00019718,2]
[349960194,1737537045856,-3576.71,0.00019718,2]
[349960195,1737537045867,-1457.13,0.00019718,2]
[349960196,1737537045877,-657.76,0.00019718,2]
[349960197,1737537045886,-783.71,0.00019718,2]
[349960198,1737537045896,-1740.71,0.00019718,2]